fUSD/lending_fUSD_20251217
["ID","MTS","AMOUNT","RATE_DAILY","PERIOD"]
[398935325,1766007042485,-504.44339488,0.00013698,2]
[398935327,1766007042494,-500.0,0.00013698,2]
[398935330,1766007042504,-500.0,0.00013698,2]
[398935333,1766007042513,-500.0,0.00013698,2]
[398935335,1766007042523,-500.0,0.00013698,2]
[398935337,1766007042532,-500.0,0.00013698,2]
[398935339,1766007042541,-500.0,0.00013698,2]
[398935341,1766007042550,-500.0,0.00013698,2]
[398935343,1766007042560,-500.0,0.00013698,2]
[398935345,1766007042569,-500.0,0.00013698,2]
[398935347,1766007042578,-500.0,0.00013698,2]
[398935349,1766007042587,-500.0,0.00013698,2]
[398935351,1766007042596,-948.6,0.00013699,2]
[398935353,1766007042606,-500.0,0.00013699,2]
[398935355,1766007042616,-500.0,0.00013699,2]
[398935357,1766007042625,-500.0,0.00013699,2]
[398935359,1766007042634,-500.0,0.00013699,2]
[398935361,1766007042643,-500.0,0.00013699,2]
[398935363,1766007042652,-253.91295482,0.00013699,2]
[398935365,1766007042662,-500.0,0.00013699,2]
[398935367,1766007042671,-500.0,0.00013699,2]
[398935369,1766007042680,-500.0,0.00013699,2]
[398935371,1766007042690,-500.0,0.00013699,2]
[398935373,1766007042703,-500.0,0.00013699,2]
[398935375,1766007042712,-500.0,0.00013699,2]
[398935377,1766007042722,-500.0,0.00013699,2]
[398935379,1766007042731,-500.0,0.00013699,2]
[398935381,1766007042741,-400.0,0.00013699,2]
[398935383,1766007042750,-500.0,0.00013699,2]
[398935385,1766007042759,-500.0,0.00013699,2]
[398935387,1766007042770,-500.0,0.00013699,2]
[398935389,1766007042779,-500.0,0.00013699,2]
[398935391,1766007042788,-500.0,0.00013699,2]
[398935393,1766007042796,-500.0,0.00013699,2]
[398935395,1766007042805,-500.0,0.00013699,2]
[398935397,1766007042815,-500.0,0.00013699,2]
[398935399,1766007042824,-500.0,0.00013699,2]
[398935401,1766007042835,-500.0,0.00013699,2]
[398935403,1766007042844,-500.0,0.00013699,2]
[398935405,1766007042854,-500.0,0.00013699,2]
[398935407,1766007042864,-500.0,0.00013699,2]
[398935409,1766007042874,-500.0,0.00013699,2]
[398935411,1766007042883,-500.0,0.00013699,2]
[398935413,1766007042893,-500.0,0.00013699,2]
[398935415,1766007042902,-155.53,0.000137,2]
[398935417,1766007042911,-155.53,0.000137,2]
[398935419,1766007042921,-155.53,0.000137,2]
[398935421,1766007042932,-155.53,0.000137,2]
[398935423,1766007042941,-1447.42116383,0.00013708,2]
[398935425,1766007042950,-294.05868298,0.00013764,2]
[398935427,1766007042960,-547.0,0.00013764,2]
[398935429,1766007042973,-348.79,0.00013772,2]
[398935432,1766007042983,-500.0,0.00013809,2]
[398935433,1766007042992,-500.0,0.00013809,2]
[398935436,1766007043002,-22648.67811748,0.00013873,2]
[398935438,1766007043011,-183.1948293,0.00013883,2]
[398935440,1766007043020,-547.0,0.00013901,2]
[398935442,1766007043029,-1627.19,0.00013901,2]
[398935444,1766007043039,-200.0,0.00013901,2]
[398935446,1766007043055,-500.0,0.00013901,2]
[398935448,1766007043066,-500.0,0.00013908,2]
[398935450,1766007043075,-500.0,0.00013921,2]
[398935452,1766007043084,-1000.0,0.00013921,2]
[398935454,1766007043093,-446.79619718,0.00013921,2]
[398935456,1766007043103,-649.79191981,0.00013921,2]
[398935458,1766007043113,-1000.0,0.00013921,2]
[398935460,1766007043122,-413.17870048,0.00013946,2]
[398935462,1766007043131,-500.0,0.00013946,2]
[398935464,1766007043141,-245.97,0.00013956,2]
[398935466,1766007043150,-547.0,0.00014038,2]
[398935468,1766007043159,-500.0,0.00014083,2]
[398935470,1766007043168,-500.0,0.00014137,2]
[398935472,1766007043179,-547.0,0.00014175,2]
[398935473,1766007043188,-1627.19,0.00014175,2]
[398935474,1766007043197,-500.0,0.00014182,2]
[398935475,1766007043206,-500.0,0.0001422,2]
[398935476,1766007043215,-494.32,0.00014281,2]
[398935477,1766007043225,-547.0,0.00014312,2]
[398935478,1766007043234,-1447.42116383,0.00014346,2]
[398935479,1766007043243,-500.0,0.00014357,2]
[398935480,1766007043253,-22648.67811748,0.00014378,2]
[398935482,1766007043262,-348.79,0.00014427,2]
[398935484,1766007043271,-547.0,0.00014449,2]
[398935486,1766007043280,-1627.19,0.00014449,2]
[398935488,1766007043289,-200.0,0.00014449,2]
[398935490,1766007043298,-500.0,0.00014449,2]
[398935492,1766007043307,-500.0,0.00014456,2]
[398935494,1766007043317,-1500.0,0.00014468,2]
[398935496,1766007043327,-266.8433042,0.00014468,2]
[398935499,1766007043337,-500.0,0.00014494,2]
[398935501,1766007043346,-177.49,0.00014506,2]
[398935503,1766007043355,-433.0,0.00014561,2]
[398935505,1766007043364,-193.52,0.00014581,2]
[398935507,1766007043373,-547.0,0.00014586,2]
[398935509,1766007043382,-500.0,0.00014631,2]
[398935511,1766007043391,-587.0,0.00014675,2]
[398935513,1766007043400,-547.0,0.00014723,2]
[398935515,1766007043409,-1627.19,0.00014723,2]
[398935517,1766007043421,-500.0,0.0001473,2]
[398935519,1766007043431,-2351.0,0.0001474,2]
[398935521,1766007043441,-371.44474318,0.00014768,2]
[398935523,1766007043450,-258.0068092,0.00014794,2]
[398935525,1766007043461,-11724.71,0.00014795,2]
[398935527,1766007043470,-547.0,0.0001486,2]
[398935529,1766007043479,-22648.67811748,0.00014882,2]
[398935531,1766007043488,-451.61703717,0.000149,2]
[398935533,1766007043497,-494.32,0.00014928,2]
[398935535,1766007043505,-1447.42116383,0.00014985,2]
[398935537,1766007043514,-547.0,0.00014997,2]
[398935539,1766007043523,-1627.19,0.00014997,2]
[398935541,1766007043532,-200.0,0.00014997,2]
[398935543,1766007043541,-500.0,0.00014997,2]
[398935545,1766007043550,-20213.7134523,0.00015,2]
[398935547,1766007043559,-500.0,0.00015004,2]
[398935549,1766007043568,-1250.73714884,0.00015016,2]
[398935551,1766007043577,-348.79,0.00015083,2]
[398935553,1766007043586,-177.49,0.00015091,2]
[398935554,1766007043595,-547.0,0.00015134,2]
[398935555,1766007043606,-193.52,0.00015156,2]
[398935556,1766007043616,-677.44,0.00015237,2]
[398935557,1766007043625,-547.0,0.00015271,2]
[398935558,1766007043634,-1627.19,0.00015271,2]
[398935559,1766007043644,-500.0,0.00015278,2]
[398935560,1766007043653,-150.0,0.00015288,2]
[398935561,1766007043662,-150.00000001,0.00015288,2]
[398935562,1766007043671,-150.0,0.00015288,2]
[398935563,1766007043680,-150.0,0.00015288,2]
[398935564,1766007043690,-150.0,0.00015288,2]
[398935565,1766007043702,-150.0,0.00015288,2]
[398935566,1766007043711,-150.0,0.00015288,2]
[398935567,1766007043720,-150.0,0.00015288,2]
[398935568,1766007043730,-150.0,0.00015288,2]
[398935569,1766007043741,-150.0,0.00015288,2]
[398935570,1766007043751,-150.0,0.00015288,2]
[398935571,1766007043760,-150.0,0.00015288,2]
[398935572,1766007043771,-150.0,0.00015288,2]
[398935573,1766007043780,-150.0,0.00015288,2]
[398935574,1766007043789,-150.0,0.00015288,2]
[398935575,1766007043799,-150.0,0.00015308,2]
[398935576,1766007043808,-150.0,0.00015314,2]
[398935577,1766007043817,-150.0,0.00015317,2]
[398935578,1766007043827,-150.0,0.00015325,2]
[398935579,1766007043836,-150.0,0.00015325,2]
[398935580,1766007043845,-150.0,0.00015327,2]
[398935581,1766007043854,-150.0,0.00015329,2]
[398935582,1766007043864,-150.0,0.00015336,2]
[398935583,1766007043874,-150.0,0.0001534,2]
[398935584,1766007043884,-150.0,0.00015346,2]
[398935585,1766007043894,-150.0,0.0001535,2]
[398935586,1766007043903,-150.0,0.00015362,2]
[398935587,1766007043914,-150.0,0.00015363,2]
[398935588,1766007043923,-150.0,0.00015366,2]
[398935589,1766007043932,-150.0,0.00015367,2]
[398935590,1766007043941,-150.0,0.00015371,2]
[398935591,1766007043952,-150.0,0.00015373,2]
[398935592,1766007043961,-150.0,0.00015376,2]
[398935593,1766007043971,-150.0,0.00015385,2]
[398935594,1766007043982,-22648.67811748,0.00015387,2]
[398935595,1766007043993,-150.0,0.00015391,2]
[398935596,1766007044002,-150.0,0.00015392,2]
[398935597,1766007044012,-150.0,0.00015398,2]
[398935598,1766007044022,-505.62829288,0.000154,2]
[398935599,1766007044032,-150.0,0.00015401,2]
[398935600,1766007044041,-150.0,0.00015405,2]
[398935601,1766007044050,-150.0,0.00015406,2]
[398935602,1766007044059,-547.0,0.00015408,2]
[398935603,1766007044068,-150.0,0.00015409,2]
[398935604,1766007044077,-150.0,0.00015412,2]
[398935605,1766007044086,-150.0,0.00015418,2]
[398935606,1766007044096,-150.0,0.00015418,2]
[398935607,1766007044105,-150.0,0.00015429,2]
[398935608,1766007044115,-150.0,0.00015433,2]
[398935609,1766007044124,-150.0,0.00015433,2]
[398935610,1766007044133,-150.0,0.00015434,2]
[398935611,1766007044143,-150.0,0.00015435,2]
[398935612,1766007044153,-150.0,0.00015439,2]
[398935613,1766007044162,-150.0,0.00015444,2]
[398935614,1766007044171,-150.0,0.00015446,2]
[398935615,1766007044180,-150.0,0.00015453,2]
[398935616,1766007044189,-150.0,0.00015458,2]
[398935617,1766007044199,-150.0,0.00015463,2]
[398935618,1766007044208,-302.01604807,0.00015467,2]
[398935619,1766007044218,-150.0,0.00015471,2]
[398935620,1766007044228,-150.0,0.00015472,2]
[398935621,1766007044239,-500.0,0.00015473,2]
[398935622,1766007044250,-500.0,0.00015473,2]
[398935623,1766007044259,-500.0,0.00015473,2]
[398935624,1766007044268,-500.0,0.00015473,2]
[398935625,1766007044277,-500.0,0.00015473,2]
[398935626,1766007044286,-500.0,0.00015473,2]
[398935627,1766007044295,-500.0,0.00015473,2]
[398935628,1766007044304,-530.10800238,0.00015473,2]
[398935629,1766007044313,-500.0,0.00015473,2]
[398935630,1766007044322,-500.0,0.00015473,2]
[398935631,1766007044331,-500.0,0.00015473,2]
[398935632,1766007044339,-270.30071685,0.00015473,2]
[398935633,1766007044349,-500.0,0.00015473,2]
[398935634,1766007044358,-500.0,0.00015473,2]
[398935635,1766007044368,-500.0,0.00015473,2]
[398935636,1766007044378,-500.0,0.00015473,2]
[398935637,1766007044387,-500.0,0.00015473,2]
[398935638,1766007044397,-500.0,0.00015473,2]
[398935639,1766007044407,-150.0,0.00015474,2]
[398935640,1766007044416,-150.0,0.00015476,2]
[398935641,1766007044425,-150.0,0.00015482,2]
[398935642,1766007044434,-150.0,0.00015485,2]
[398935643,1766007044443,-150.0,0.00015493,2]
[398935644,1766007044453,-150.0,0.00015495,2]
[398935645,1766007044462,-150.0,0.00015497,2]
[398935646,1766007044472,-150.0,0.00015509,2]
[398935647,1766007044482,-150.0,0.00015514,2]
[398935648,1766007044493,-150.0,0.00015516,2]
[398935649,1766007044503,-150.0,0.00015522,2]
[398935650,1766007044513,-150.0,0.00015523,2]
[398935651,1766007044524,-150.0,0.00015525,2]
[398935652,1766007044533,-150.0,0.0001553,2]
[398935653,1766007044543,-150.0,0.0001553,2]
[398935654,1766007044552,-150.0,0.00015536,2]
[398935655,1766007044561,-150.0,0.00015542,2]
[398935656,1766007044570,-207.4,0.00015544,2]
[398935657,1766007044580,-547.0,0.00015545,2]
[398935658,1766007044589,-1627.19,0.00015545,2]
[398935659,1766007044599,-200.0,0.00015545,2]
[398935660,1766007044608,-500.0,0.00015545,2]
[398935661,1766007044617,-150.0,0.00015546,2]
[398935662,1766007044627,-150.0,0.00015549,2]
[398935663,1766007044760,-150.0,0.00015549,2]
[398935664,1766007044770,-150.0,0.00015551,2]
[398935665,1766007044779,-457.04108268,0.00015552,2]
[398935666,1766007044788,-150.0,0.00015552,2]
[398935667,1766007044796,-150.0,0.00015557,2]
[398935668,1766007044805,-500.0,0.00015558,2]
[398935669,1766007044814,-500.0,0.00015558,2]
[398935670,1766007044823,-150.0,0.00015564,2]
[398935671,1766007044832,-500.0,0.00015567,2]
[398935672,1766007044842,-305.17878308,0.00015567,2]
[398935673,1766007044852,-500.0,0.00015567,2]
[398935674,1766007044861,-469.07,0.00015567,2]
[398935675,1766007044870,-238.49401825,0.00015567,2]
[398935676,1766007044880,-500.0,0.00015567,2]
[398935677,1766007044889,-500.0,0.00015567,2]
[398935678,1766007044898,-500.0,0.00015567,2]
[398935679,1766007044907,-500.0,0.00015567,2]
[398935680,1766007044916,-508.5401249,0.00015567,2]
[398935681,1766007044925,-500.0,0.00015567,2]
[398935682,1766007044933,-500.0,0.00015567,2]
[398935683,1766007044942,-500.0,0.00015567,2]
[398935684,1766007044951,-500.0,0.00015567,2]
[398935685,1766007044960,-500.0,0.00015567,2]
[398935686,1766007044969,-311.27445849,0.00015567,2]
[398935687,1766007044978,-500.0,0.00015567,2]
[398935688,1766007044987,-500.0,0.00015567,2]
[398935689,1766007044997,-500.0,0.00015567,2]
[398935690,1766007045009,-500.0,0.00015567,2]
[398935691,1766007045018,-500.0,0.00015567,2]
[398935692,1766007045028,-500.0,0.00015567,2]
[398935693,1766007045036,-500.0,0.00015567,2]
[398935694,1766007045046,-150.0,0.00015571,2]
[398935695,1766007045055,-150.0,0.00015571,2]
[398935696,1766007045064,-150.0,0.00015575,2]
[398935697,1766007045074,-150.0,0.00015578,2]
[398935698,1766007045084,-150.0,0.00015579,2]
[398935699,1766007045094,-150.0,0.00015581,2]
[398935700,1766007045105,-150.0,0.00015583,2]
[398935701,1766007045115,-150.0,0.0001559,2]
[398935702,1766007045124,-150.0,0.00015598,2]
[398935703,1766007045134,-219.7,0.00015601,2]
[398935704,1766007045144,-150.0,0.00015601,2]
[398935705,1766007045154,-150.0,0.00015604,2]
[398935706,1766007045164,-150.0,0.0001561,2]
[398935707,1766007045174,-150.0,0.00015619,2]
[398935708,1766007045183,-150.0,0.0001562,2]
[398935709,1766007045193,-1447.42116383,0.00015623,2]
[398935710,1766007045203,-219.7,0.00015627,2]
[398935711,1766007045212,-150.0,0.00015627,2]
[398935712,1766007045222,-150.0,0.00015627,2]
[398935713,1766007045231,-150.0,0.00015627,2]
[398935714,1766007045240,-150.0,0.00015627,2]
[398935715,1766007045248,-150.0,0.00015639,2]
[398935716,1766007045258,-150.0,0.0001564,2]
[398935717,1766007045267,-150.0,0.00015643,2]
[398935718,1766007045276,-150.0,0.00015652,2]
[398935719,1766007045285,-150.0,0.00015654,2]
[398935720,1766007045294,-150.0,0.00015657,2]
[398935721,1766007045303,-150.0,0.00015661,2]
[398935722,1766007045312,-150.0,0.00015665,2]
[398935723,1766007045321,-150.0,0.00015668,2]
[398935724,1766007045330,-150.0,0.00015676,2]
[398935725,1766007045339,-150.0,0.0001568,2]
[398935726,1766007045348,-150.0,0.0001568,2]
[398935727,1766007045357,-150.0,0.00015681,2]
[398935728,1766007045366,-555.66464681,0.00015682,2]
[398935729,1766007045375,-150.0,0.00015683,2]
[398935730,1766007045383,-150.0,0.00015694,2]
[398935731,1766007045392,-150.0,0.00015698,2]
[398935732,1766007045402,-150.0,0.00015702,2]
[398935733,1766007045411,-150.0,0.00015703,2]
[398935734,1766007045420,-150.0,0.00015706,2]
[398935735,1766007045429,-150.0,0.00015712,2]
[398935736,1766007045438,-150.0,0.00015712,2]
[398935737,1766007045447,-236.66,0.00015722,2]
[398935738,1766007045456,-150.0,0.00015722,2]
[398935739,1766007045465,-150.0,0.00015723,2]
[398935740,1766007045474,-150.0,0.00015724,2]
[398935741,1766007045483,-150.0,0.00015727,2]
[398935742,1766007045491,-150.0,0.00015731,2]
[398935743,1766007045501,-150.0,0.00015732,2]
[398935744,1766007045511,-348.79,0.00015739,2]
[398935745,1766007045519,-150.0,0.00015741,2]
[398935746,1766007045529,-150.0,0.00015743,2]
[398935747,1766007045537,-150.0,0.00015756,2]
[398935748,1766007045547,-150.0,0.00015758,2]
[398935749,1766007045555,-150.0,0.00015762,2]
[398935750,1766007045564,-150.0,0.00015764,2]
[398935751,1766007045573,-150.0,0.00015768,2]
[398935752,1766007045583,-150.0,0.00015773,2]
[398935753,1766007045591,-150.0,0.00015773,2]
[398935754,1766007045600,-150.0,0.00015778,2]
[398935755,1766007045610,-150.0,0.00015784,2]
[398935756,1766007045619,-150.0,0.00015785,2]
[398935757,1766007045628,-150.0,0.00015786,2]
[398935758,1766007045638,-150.0,0.00015797,2]
[398935759,1766007045647,-150.0,0.00015801,2]
[398935760,1766007045656,-150.0,0.00015805,2]
[398935761,1766007045666,-150.0,0.00015806,2]
[398935762,1766007045675,-2227.88016117,0.00015807,2]
[398935763,1766007045685,-150.0,0.0001581,2]
[398935764,1766007045694,-150.0,0.0001581,2]
[398935765,1766007045706,-150.0,0.00015815,2]
[398935768,1766007045716,-150.0,0.00015816,2]
[398935771,1766007045725,-1627.3,0.00015819,2]
[398935774,1766007045734,-150.0,0.00015822,2]
[398935776,1766007045746,-150.0,0.00015826,2]
[398935777,1766007045755,-150.0,0.00015836,2]
[398935778,1766007045764,-150.0,0.00015841,2]
[398935780,1766007045775,-150.0,0.00015842,2]
[398935782,1766007045785,-150.0,0.00015844,2]
[398935784,1766007045795,-150.0,0.00015847,2]
[398935786,1766007045804,-736.0,0.0001585,2]
[398935788,1766007045814,-150.0,0.00015854,2]
[398935790,1766007045823,-150.0,0.00015854,2]
[398935792,1766007045837,-150.0,0.00015854,2]
[398935794,1766007045846,-150.0,0.00015854,2]
[398935795,1766007045856,-150.0,0.00015863,2]
[398935796,1766007045865,-150.0,0.00015868,2]
[398935797,1766007045874,-150.0,0.0001587,2]
[398935798,1766007045883,-150.0,0.00015873,2]
[398935799,1766007045892,-150.0,0.00015878,2]
[398935800,1766007045902,-150.0,0.0001588,2]
[398935801,1766007045911,-150.0,0.00015882,2]
[398935802,1766007045921,-150.0,0.00015888,2]
[398935803,1766007045930,-150.0,0.00015889,2]
[398935804,1766007045940,-721.0,0.0001589,2]
[398935805,1766007045949,-721.0,0.0001589,2]
[398935806,1766007045959,-721.0,0.0001589,2]
[398935807,1766007045968,-22648.67811748,0.00015891,2]
[398935808,1766007045978,-150.0,0.00015892,2]
[398935809,1766007045987,-150.0,0.00015894,2]
[398935810,1766007045997,-150.0,0.00015903,2]
[398935811,1766007046007,-150.0,0.00015909,2]
[398935812,1766007046016,-150.0,0.00015915,2]
[398935813,1766007046025,-150.0,0.00015915,2]
[398935814,1766007046035,-150.0,0.00015919,2]
[398935815,1766007046044,-150.0,0.0001592,2]
[398935816,1766007046054,-150.0,0.00015929,2]
[398935817,1766007046063,-150.0,0.0001593,2]
[398935818,1766007046072,-150.0,0.00015932,2]
[398935819,1766007046081,-150.0,0.00015941,2]
[398935820,1766007046090,-150.0,0.00015941,2]
[398935821,1766007046101,-150.0,0.00015951,2]
[398935822,1766007046110,-150.0,0.00015952,2]
[398935823,1766007046119,-150.0,0.00015959,2]
[398935824,1766007046128,-150.0,0.00015961,2]
[398935825,1766007046138,-150.0,0.00015967,2]
[398935826,1766007046147,-150.0,0.00015967,2]
[398935827,1766007046156,-150.0,0.00015967,2]
[398935828,1766007046165,-150.0,0.00015967,2]
[398935829,1766007046174,-150.0,0.00015971,2]
[398935830,1766007046183,-150.0,0.00015989,2]
[398935831,1766007046191,-1863.87983717,0.0001599,2]
[398935832,1766007046200,-150.0,0.00015991,2]
[398935833,1766007046209,-150.0,0.00015992,2]
[398935834,1766007046219,-150.0,0.00015993,2]
[398935835,1766007046228,-150.0,0.00015995,2]
[398935836,1766007046237,-151.0,0.00015997,2]
[398935837,1766007046246,-150.0,0.00015999,2]
[398935838,1766007046256,-11112.25512909,0.00016,2]
[398935839,1766007046266,-203045.14519811,0.00016,2]
[398935840,1766007046275,-588513.15930905,0.00016,4]
[398935841,1766007046284,-415.16425882,0.00016,2]
[398935842,1766007046293,-150.0,0.00016005,2]
[398935843,1766007046302,-150.0,0.00016013,2]
[398935844,1766007046311,-150.0,0.00016016,2]
[398935846,1766007046320,-150.0,0.00016016,2]
[398935848,1766007046329,-250.0,0.00016017,2]
[398935850,1766007046338,-150.0,0.00016019,2]
[398935852,1766007046347,-150.0,0.0001602,2]
[398935853,1766007046357,-1000.0,0.00016021,2]
[398935854,1766007046366,-169.93256308,0.00016021,2]
[398935855,1766007046375,-711.82211152,0.00016021,2]
[398935856,1766007046383,-1000.0,0.00016021,2]
[398935857,1766007046392,-1000.0,0.00016021,2]
[398935859,1766007046401,-1000.0,0.00016021,2]
[398935860,1766007046410,-1000.0,0.00016021,2]
[398935861,1766007046419,-1000.0,0.00016021,2]
[398935862,1766007046428,-1000.0,0.00016021,2]
[398935864,1766007046437,-1000.0,0.00016021,2]
[398935866,1766007046446,-1000.0,0.00016021,2]
[398935868,1766007046455,-1000.0,0.00016021,2]
[398935870,1766007046464,-1000.0,0.00016021,2]
[398935872,1766007046473,-1000.0,0.00016021,2]
[398935874,1766007046482,-1000.0,0.00016021,2]
[398935876,1766007046492,-1000.0,0.00016021,2]
[398935878,1766007046502,-150.0,0.00016026,2]
[398935880,1766007046512,-150.0,0.00016033,2]
[398935882,1766007046522,-150.0,0.00016038,2]
[398935884,1766007046531,-150.0,0.00016043,2]
[398935886,1766007046541,-150.0,0.00016046,2]
[398935888,1766007046550,-150.0,0.00016049,2]
[398935890,1766007046560,-150.0,0.00016052,2]
[398935892,1766007046570,-150.0,0.00016054,2]
[398935894,1766007046580,-150.0,0.00016063,2]
[398935896,1766007046589,-150.0,0.00016064,2]
[398935898,1766007046598,-150.0,0.00016072,2]
[398935900,1766007046608,-150.0,0.00016072,2]
[398935902,1766007046617,-150.0,0.00016075,2]
[398935904,1766007046626,-150.0,0.00016078,2]
[398935906,1766007046636,-150.0,0.00016078,2]
[398935908,1766007046645,-150.0,0.0001608,2]
[398935910,1766007046655,-200.0,0.00016093,2]
[398935912,1766007046664,-500.0,0.00016093,2]
[398935915,1766007046674,-150.0,0.00016096,2]
[398935917,1766007046683,-150.0,0.00016098,2]
[398935919,1766007046693,-150.0,0.000161,2]
[398935921,1766007046706,-823.0,0.00016107,2]
[398935923,1766007046716,-150.0,0.00016108,2]
[398935925,1766007046725,-150.0,0.00016113,2]
[398935927,1766007046734,-9999.99,0.00016116,2]
[398935929,1766007046745,-150.0,0.00016116,2]
[398935931,1766007046755,-150.0,0.00016117,2]
[398935933,1766007046764,-150.0,0.00016118,2]
[398935935,1766007046776,-150.0,0.00016124,2]
[398935937,1766007046785,-150.0,0.00016137,2]
[398935939,1766007046795,-150.0,0.00016137,2]
[398935941,1766007046804,-150.0,0.00016137,2]
[398935943,1766007046814,-150.0,0.00016137,2]
[398935945,1766007046824,-150.0,0.00016137,2]
[398935947,1766007046834,-150.0,0.00016137,2]
[398935950,1766007046843,-150.0,0.00016137,2]
[398935952,1766007046852,-150.0,0.00016137,2]
[398935953,1766007046862,-150.0,0.0001615,2]
[398935955,1766007046872,-150.0,0.00016156,2]
[398935958,1766007046881,-150.0,0.00016157,2]
[398935960,1766007046891,-150.0,0.00016158,2]
[398935962,1766007046900,-150.0,0.00016161,2]
[398935964,1766007046909,-150.0,0.00016166,2]
[398935966,1766007046919,-160.29,0.00016169,2]
[398935968,1766007046929,-150.0,0.00016174,2]
[398935970,1766007046938,-150.0,0.00016176,2]
[398935972,1766007046947,-150.0,0.00016178,2]
[398935974,1766007046956,-302.01604806,0.00016184,2]
[398935976,1766007046966,-150.0,0.00016194,2]
[398935978,1766007046976,-150.0,0.00016196,2]
[398935980,1766007046986,-150.0,0.00016196,2]
[398935982,1766007046995,-150.0,0.00016199,2]
[398935984,1766007047005,-6732.21284066,0.000162,5]
[398935986,1766007047015,-1000.0,0.000162,2]
[398935989,1766007047025,-150.0,0.00016202,2]
[398935990,1766007047034,-150.0,0.00016202,2]
[398935993,1766007047044,-150.0,0.0001621,2]
[398935995,1766007047053,-150.0,0.00016211,2]
[398935997,1766007047062,-3292.0,0.00016214,2]
[398935999,1766007047072,-150.0,0.0001622,2]
[398936001,1766007047081,-150.0,0.00016222,2]
[398936003,1766007047090,-150.0,0.00016225,2]
[398936005,1766007047100,-150.0,0.00016228,2]
[398936007,1766007047110,-150.0,0.00016231,2]
[398936009,1766007047120,-150.0,0.00016236,2]
[398936011,1766007047131,-707.42,0.00016237,2]
[398936013,1766007047141,-150.0,0.00016241,2]
[398936015,1766007047151,-150.0,0.00016248,2]
[398936017,1766007047161,-150.0,0.00016254,2]
[398936019,1766007047171,-150.0,0.00016255,2]
[398936021,1766007047180,-150.0,0.00016258,2]
[398936023,1766007047191,-150.0,0.00016258,2]
[398936025,1766007047200,-150.0,0.00016261,2]
[398936027,1766007047211,-1447.42116383,0.00016262,2]
[398936029,1766007047221,-150.0,0.00016269,2]
[398936032,1766007047232,-150.0,0.00016275,2]
[398936034,1766007047241,-150.0,0.00016279,2]
[398936036,1766007047252,-150.0,0.00016281,2]
[398936038,1766007047262,-150.0,0.00016282,2]
[398936040,1766007047271,-150.0,0.00016283,2]
[398936042,1766007047281,-150.0,0.00016285,2]
[398936044,1766007047290,-150.0,0.00016303,2]
[398936046,1766007047300,-150.0,0.00016307,2]
[398936048,1766007047310,-150.0,0.00016307,2]
[398936050,1766007047319,-150.0,0.00016307,2]
[398936052,1766007047330,-150.0,0.00016307,2]
[398936054,1766007047340,-150.0,0.00016313,2]